bitfinex/quotes_ETHUSD_20250426
["timestamp","ask_amount","ask_price","bid_price","bid_amount"]
[1745663279498,5.43114,1809.6,1809.4,5.52658236]
[1745663279722,5.43114,1809.6,1809.3,5.52683215]
[1745663280379,5.43114,1809.6,1809.4,5.52668778]
[1745663280602,5.43114,1809.6,1809.3,11.05361338]
[1745663281007,4.867,1809.6,1809.4,5.52649128]
[1745663281377,4.867,1809.6,1809.4,5.52644805]
[1745663281573,4.867,1809.6,1809.1,6.33417108]
[1745663281911,4.867,1809.6,1809.1,7.27523892]
[1745663282408,4.867,1809.6,1809.4,5.52647952]
[1745663282820,4.867,1809.6,1809.3,5.5267843]
[1745663283119,4.867,1809.6,1809.3,11.05355356]
[1745663283301,1.72816784,1809.4,1809.0,0.40480976]
[1745663283523,1.3371,1809.3,1808.9,5.5280444]
[1745663283728,4.861,1809.2,1808.9,5.52819317]
[1745663285929,4.861,1809.2,1808.9,5.52799258]
[1745663286237,4.861,1809.2,1809.1,5.52761041]
[1745663287443,4.861,1809.2,1809.0,5.52767585]
[1745663288011,4.861,1809.2,1809.0,5.52769402]
[1745663289024,4.861,1809.2,1809.1,5.52761041]
[1745663294067,3.0,1809.4,1809.2,5.52707721]
[1745663294436,6.1936,1809.5,1809.2,1.10546876]
[1745663294437,5.6436,1809.5,1809.2,1.10546876]
[1745663294666,4.862,1809.5,1809.3,5.52678258]
[1745663295541,4.862,1809.5,1809.2,5.52705549]
[1745663296245,4.862,1809.5,1809.1,5.52749876]
[1745663296449,0.7816,1809.4,1809.1,5.52749876]
[1745663296749,0.7816,1809.4,1809.2,5.52718347]
[1745663297957,4.862,1809.5,1809.3,5.5268902]
[1745663300073,4.862,1809.5,1809.2,5.52718087]
[1745663300876,5.72636,1809.5,1809.2,5.52718087]
[1745663301076,5.72636,1809.5,1809.0,0.40480976]
[1745663301276,0.7816,1809.4,1809.0,5.93259184]
[1745663301651,0.7816,1809.4,1809.0,11.46029225]
[1745663301851,0.7816,1809.4,1809.0,5.93251017]
[1745663302049,0.7816,1809.4,1809.0,11.46030233]
[1745663302243,0.7816,1809.4,1809.0,0.40480976]
[1745663302449,0.7816,1809.4,1809.0,5.93271058]
[1745663302882,0.7816,1809.4,1809.1,5.52760837]
[1745663303260,0.7816,1809.4,1809.0,5.93258647]
[1745663303461,0.7816,1809.4,1809.0,0.40480976]
[1745663303780,1.432396,1809.4,1809.0,5.9325462]
[1745663304852,1.432396,1809.4,1809.0,5.52773644]
[1745663305254,1.432396,1809.4,1809.0,5.5276736]
[1745663305482,1.432396,1809.4,1809.0,11.05537444]
[1745663305851,1.432396,1809.4,1809.1,5.52751992]
[1745663308203,1.432396,1809.4,1809.0,5.52772032]
[1745663310799,1.432396,1809.4,1808.9,5.52806844]
[1745663311015,1.432396,1809.4,1808.9,5.52800348]
[1745663311179,0.7609,1809.3,1808.9,5.52800313]
[1745663311905,1.2020696,1809.3,1808.9,5.52800313]
[1745663313011,0.8277,1809.2,1808.8,5.52834836]
[1745663313214,4.858,1809.1,1808.8,5.52834836]
[1745663313565,0.8277,1809.0,1808.8,5.52834836]
[1745663314403,0.8277,1809.0,1808.8,5.52832478]
[1745663314604,0.8277,1809.0,1808.9,5.52822157]
[1745663314812,0.8277,1809.0,1808.8,5.52832478]
[1745663317804,0.8277,1809.0,1808.8,5.52824205]
[1745663318108,0.8277,1809.0,1808.9,5.52822157]
[1745663318780,0.8277,1809.0,1808.7,5.93349552]
[1745663319822,0.55,1808.9,1808.4,5.52950463]
[1745663320115,0.8277,1808.8,1808.4,5.52948473]
[1745663321679,0.8277,1808.8,1808.5,5.52940492]
[1745663322309,0.8277,1808.8,1808.4,5.52948473]
[1745663322310,0.8277,1808.8,1808.6,5.5291132]
[1745663322602,3.7652,1809.0,1808.6,6.2801634]
[1745663322910,3.7652,1809.0,1808.6,5.5289634]
[1745663325612,4.62752,1809.0,1808.6,5.5289634]
[1745663326409,4.62752,1809.0,1808.5,5.52927738]
[1745663326410,0.55,1808.9,1808.5,5.52927738]
[1745663326579,0.7652,1808.8,1808.5,5.52927738]
[1745663327107,0.7652,1808.8,1808.5,11.05850429]
[1745663327411,0.7652,1808.8,1808.6,5.5290076]
[1745663327770,4.62752,1809.0,1808.6,5.52890301]
[1745663329910,4.62752,1809.0,1808.6,11.05779749]
[1745663330280,4.62752,1809.0,1808.7,5.52863339]
[1745663330585,4.62752,1809.0,1808.8,5.52850932]
[1745663330791,4.62752,1809.0,1808.7,5.52860503]
[1745663331517,3.7652,1809.0,1808.7,5.52860503]
[1745663333477,3.7652,1809.0,1808.6,5.52895907]
[1745663335818,3.7652,1809.0,1808.6,11.05787171]
[1745663336027,3.7652,1809.0,1808.6,5.52891264]
[1745663336613,3.7652,1809.0,1808.7,5.52881621]
[1745663337520,3.7652,1809.0,1808.6,5.52891264]
[1745663337717,3.7652,1809.0,1808.7,5.52879586]
[1745663339519,5.6431,1809.1,1808.8,5.52836373]
[1745663339813,5.6431,1809.1,1808.8,11.05667222]
[1745663340420,5.6431,1809.1,1808.9,5.52821192]
[1745663341496,5.6431,1809.1,1808.8,5.52830424]
[1745663341745,5.6431,1809.1,1808.9,5.52818518]
[1745663342207,5.6431,1809.1,1808.8,5.52835388]
[1745663343043,5.6431,1809.1,1808.8,11.05665922]
[1745663343346,5.6431,1809.1,1808.8,11.0566027]
[1745663343493,5.6431,1809.1,1808.8,5.52829736]
[1745663343691,0.7745,1808.6,1808.2,0.40480976]
[1745663343907,0.7745,1808.6,1808.1,0.1]
[1745663343908,0.7745,1808.3,1808.1,0.1]
[1745663344303,0.94184166,1808.2,1808.1,0.1]
[1745663345009,3.94184166,1808.2,1808.1,0.1]
[1745663345331,0.7745,1808.3,1808.1,0.1]
[1745663346802,0.55,1808.2,1808.1,0.1]
[1745663349125,6.85426168,1808.2,1808.1,0.1]
[1745663349456,1.3239,1808.2,1808.1,0.1]
[1745663349815,0.7739,1808.2,1808.1,0.1]
[1745663351746,3.7739,1808.2,1808.1,0.1]
[1745663351947,10.82241494,1808.2,1808.1,0.1]
[1745663352317,5.29205326,1808.2,1808.1,0.1]
[1745663352816,10.82241494,1808.2,1808.1,0.1]
[1745663353136,5.53151389,1807.9,1807.3,0.8081]
[1745663353341,5.6885,1807.8,1807.3,6.34105553]
[1745663353513,12.34210697,1807.8,1807.3,0.8081]
[1745663353717,3.0,1807.7,1807.3,0.8081]
[1745663353918,3.0,1807.7,1807.2,5.93810233]
[1745663353919,8.53200435,1807.7,1807.2,0.40480976]
[1745663354137,0.8315,1807.6,1807.2,0.40480976]
[1745663354941,0.55,1807.5,1807.2,0.40480976]
[1745663355144,4.857,1807.4,1807.1,0.1]
[1745663355655,4.857,1807.4,1807.1,5.63359494]
[1745663356160,4.857,1807.4,1807.1,0.1]
[1745663356459,0.8315,1807.3,1807.1,0.1]
[1745663356661,5.6885,1807.4,1807.1,0.1]
[1745663357064,6.38148743,1807.4,1807.1,0.1]
[1745663357556,6.38148743,1807.4,1807.1,5.63371676]
[1745663358932,4.857,1807.4,1807.2,5.53341015]
[1745663360058,4.857,1807.4,1807.1,6.40880726]
[1745663360237,4.857,1807.4,1807.1,11.94231271]
[1745663360437,4.857,1807.4,1807.1,6.40870545]
[1745663360850,4.857,1807.4,1807.1,11.94218038]
[1745663361361,4.857,1807.4,1807.1,6.40867493]
[1745663362059,4.857,1807.4,1807.1,11.94218011]
[1745663362456,4.857,1807.4,1807.2,5.53340649]
[1745663362861,4.857,1807.4,1807.1,6.40874595]
[1745663363027,5.3427,1807.4,1807.1,6.40874595]
[1745663363555,6.0974,1807.4,1807.1,0.1]
[1745663364255,0.55,1807.3,1807.1,0.1]
[1745663365268,4.859,1807.2,1807.1,5.63360744]
[1745663367464,4.859,1807.2,1807.1,0.1]
[1745663367664,4.859,1807.2,1807.1,5.63372807]
[1745663367960,4.859,1807.3,1807.2,5.53339541]
[1745663368263,4.859,1807.3,1807.1,5.63360502]
[1745663368765,4.859,1807.3,1807.1,0.1]
[1745663370137,4.859,1807.3,1807.1,5.63371775]
[1745663370339,4.859,1807.3,1807.2,5.53342186]
[1745663373348,0.7547,1807.6,1807.3,5.53310184]
[1745663373550,4.856,1807.5,1807.3,5.53310184]
[1745663373864,4.856,1807.5,1807.3,6.34340184]
[1745663374166,4.856,1807.4,1807.3,6.34340184]
[1745663374572,3.0,1807.7,1807.4,5.53255003]
[1745663374785,4.856,1807.6,1807.5,5.53231085]
[1745663375350,17.3612,1807.9,1807.5,1.10651204]
[1745663375702,4.856,1807.7,1807.6,6.34229234]
[1745663377278,4.856,1807.8,1807.6,6.34229234]
[1745663380692,4.856,1807.8,1807.7,5.53189135]
[1745663381225,21.46,1807.9,1807.8,5.53158535]
[1745663386010,4.855,1807.9,1807.8,5.53158535]
[1745663386311,4.855,1808.3,1808.0,6.34377012]
[1745663386962,4.855,1808.3,1808.1,5.53066133]
[1745663387407,4.855,1808.3,1808.0,6.34356898]
[1745663387967,4.855,1808.3,1808.0,11.87429424]
[1745663388303,4.855,1808.3,1807.8,1.10632855]
[1745663388465,5.45157749,1808.3,1807.9,5.5312514]
[1745663392063,4.855,1808.3,1808.0,5.53092872]
[1745663393101,4.855,1808.3,1807.7,5.93652743]
[1745663393102,3.7525,1808.2,1807.7,5.93652743]
[1745663394703,3.7525,1808.2,1807.7,5.53188338]
[1745663394880,9.28286688,1808.2,1807.6,11.87239265]
[1745663395080,3.7525,1808.2,1807.7,5.53188611]
[1745663395293,0.37525,1808.1,1807.7,5.53188611]
[1745663397402,0.37525,1808.1,1807.6,6.34047903]
[1745663397788,0.37525,1808.1,1807.6,11.87244301]
[1745663397993,0.37525,1808.1,1807.6,0.8084]
[1745663398484,0.37525,1808.1,1807.7,5.5318824]
[1745663400214,0.37525,1808.1,1807.6,6.34058614]
[1745663401312,0.7877,1808.0,1807.6,0.8084]
[1745663401613,0.7877,1808.0,1807.5,5.53238993]
[1745663401614,4.851,1807.9,1807.5,5.53238993]
[1745663401905,4.851,1807.9,1807.6,5.5321635]
[1745663403778,4.851,1807.9,1807.6,5.53195249]
[1745663404226,4.851,1807.9,1807.5,6.76090998]
[1745663404392,4.851,1807.9,1807.7,5.53174951]
[1745663405220,4.851,1807.9,1807.7,5.53163992]
[1745663406319,4.851,1807.9,1807.6,0.8158]
[1745663406505,0.7877,1807.8,1807.5,5.53237418]
[1745663406695,0.7877,1807.8,1807.5,5.53239365]
[1745663407118,0.7877,1807.7,1807.1,0.9158]
[1745663407324,0.55,1807.7,1807.1,0.1]
[1745663407542,0.7877,1807.4,1807.1,0.1]
[1745663407683,5.401,1807.3,1807.1,0.1]
[1745663410116,4.851,1807.3,1807.1,0.1]
[1745663413386,5.96815528,1807.3,1807.1,0.1]
[1745663414019,0.8148,1807.2,1807.1,0.1]
[1745663415254,4.3648,1807.2,1807.1,0.1]
[1745663416560,9.89822186,1807.2,1807.1,0.1]
[1745663420454,4.3648,1807.2,1807.1,0.1]
[1745663420754,6.2178,1807.2,1807.1,0.1]
[1745663421676,5.6678,1807.2,1807.1,0.1]
[1745663421817,4.853,1807.2,1807.1,6.40691636]
[1745663422150,4.853,1807.2,1807.1,7.6009986]
[1745663423243,4.853,1807.2,1807.1,0.8733]
[1745663423660,4.853,1807.2,1807.1,6.40702807]
[1745663424929,3.0,1807.5,1807.1,6.40702807]
[1745663425128,4.853,1807.4,1807.1,6.40702807]
[1745663425328,4.853,1807.3,1807.1,6.40702807]
[1745663426069,4.853,1807.3,1807.1,6.40687772]
[1745663427045,4.853,1807.3,1807.1,6.40678089]
[1745663427387,4.853,1807.3,1807.1,7.60084858]
[1745663427990,4.853,1807.3,1807.1,6.40678089]
[1745663429573,4.853,1807.3,1807.1,0.8733]
[1745663429887,4.853,1807.3,1807.1,0.1]
[1745663435965,4.853,1807.3,1807.1,6.41701718]
[1745663437286,4.853,1807.3,1807.1,0.8833]
[1745663437490,0.4853,1807.2,1807.1,0.1]
[1745663437703,5.6338,1807.3,1807.1,0.1]
[1745663438199,4.853,1807.3,1807.2,0.7839]
[1745663442211,4.853,1807.3,1807.1,0.1]
[1745663442507,5.6056,1807.3,1807.1,0.1]
[1745663451485,4.853,1807.3,1807.1,0.1]
[1745663452310,5.89159862,1807.3,1807.1,0.1]
[1745663455048,4.85,1807.2,1807.1,0.1]
[1745663462234,5.6548,1807.2,1807.1,0.1]
[1745663466144,4.85,1807.2,1807.1,0.1]
[1745663469150,4.85,1807.2,1807.1,0.9129]
[1745663470668,4.846,1807.3,1807.1,1.5575846]
[1745663470832,4.846,1807.3,1807.1,7.09117732]
[1745663471342,4.846,1807.4,1807.3,6.34601569]
[1745663471529,4.846,1807.4,1807.3,0.8129]
[1745663471729,4.846,1807.4,1807.3,6.34601569]
[1745663472777,4.846,1807.4,1807.3,0.8129]
[1745663473865,4.846,1807.4,1807.3,6.34601569]
[1745663483354,4.846,1807.4,1807.3,7.53393577]
[1745663483881,0.7598,1808.0,1807.7,5.53174979]
[1745663484071,0.7598,1808.2,1807.8,5.53139948]
[1745663484274,4.845,1808.0,1807.8,5.53135821]
[1745663484454,4.845,1808.0,1807.7,6.3628268]
[1745663484653,4.845,1808.0,1807.8,5.53156098]
[1745663486679,4.845,1808.0,1807.8,5.53132821]
[1745663487058,4.845,1808.0,1807.9,5.53127938]
[1745663488745,4.845,1808.0,1807.9,7.42564014]
[1745663489283,6.26466374,1808.3,1808.2,5.53036168]
[1745663489581,4.845,1808.3,1808.2,6.31846168]
[1745663490611,0.28747494,1808.4,1808.2,6.31846168]
[1745663490612,0.28747494,1808.4,1808.3,5.53005585]
[1745663490832,0.28747494,1808.4,1808.3,7.5030076]
[1745663491181,16.603,1809.2,1808.8,5.52839303]
[1745663491408,5.6604,1809.1,1808.7,6.31682161]
[1745663491585,5.6604,1809.1,1808.8,5.52847628]
[1745663491797,7.88674,1809.1,1808.8,5.52847628]
[1745663493714,7.88674,1809.1,1808.7,6.31676336]
[1745663494009,7.88674,1809.1,1808.7,0.7881]
[1745663494311,7.88674,1809.1,1808.8,5.5284838]
[1745663494509,7.88674,1809.1,1808.5,5.93410901]
[1745663494811,1.33426944,1809.0,1808.6,5.52894137]
[1745663495312,5.52826232,1808.9,1808.5,1.23670976]
[1745663495476,0.8075,1808.9,1808.4,5.5296961]
[1745663497310,0.8075,1808.9,1808.5,5.52939138]
[1745663497617,0.8075,1808.9,1808.4,5.52957222]
[1745663497815,1.92395951,1808.9,1808.4,5.52957222]
[1745663497992,1.92395951,1808.9,1808.5,5.52944371]
[1745663498315,1.92395951,1808.9,1808.4,5.52960828]
[1745663498513,0.8075,1808.9,1808.5,5.52930831]
[1745663498686,0.8075,1808.9,1808.6,5.52905921]
[1745663499386,0.8075,1808.9,1808.5,5.52927323]
[1745663500684,0.8075,1808.9,1808.4,5.52956973]
[1745663500885,0.8075,1808.9,1808.5,5.52940833]
[1745663501218,1.32167694,1808.9,1808.5,5.52940833]
[1745663501460,6.8499959,1808.9,1808.3,0.8319]
[1745663501620,0.7707,1808.5,1807.9,0.7972]
[1745663501916,0.7707,1808.2,1807.6,5.5319726]
[1745663502083,7.17307915,1808.2,1807.6,6.25493528]
[1745663502284,0.55,1808.1,1807.6,6.25493528]
[1745663502481,4.839,1808.0,1807.6,6.25488387]
[1745663502692,1.3184,1807.9,1807.6,0.72288717]
[1745663503030,4.3184,1807.9,1807.4,5.53262713]
[1745663503217,4.3184,1807.9,1807.4,11.06519238]
[1745663503520,4.3184,1807.9,1807.5,5.5325001]
[1745663504738,4.3184,1807.9,1807.6,5.53214185]
[1745663505831,4.839,1808.0,1807.8,5.53136167]
[1745663506002,4.839,1808.0,1807.9,5.53127938]
[1745663506327,21.435,1808.3,1808.1,5.53040608]
[1745663506707,4.839,1808.3,1808.2,5.53036168]
[1745663507309,4.839,1808.3,1808.1,5.53047926]
[1745663508007,4.839,1808.3,1808.1,11.06089459]
[1745663508210,4.839,1808.3,1808.2,5.53036168]
[1745663511639,4.839,1808.3,1808.1,6.63660989]
[1745663512099,4.839,1808.3,1808.1,12.16710779]
[1745663512301,4.839,1808.3,1808.1,6.63658736]
[1745663513007,4.839,1808.3,1808.1,12.16700675]
[1745663513209,4.839,1808.3,1808.1,6.63650885]
[1745663513541,0.775,1808.2,1807.9,5.53117303]
[1745663514143,3.775,1808.2,1807.8,0.55313617]
[1745663514306,3.775,1808.2,1807.7,5.93642284]
[1745663514507,3.775,1808.2,1807.7,5.53161308]
[1745663514709,3.775,1808.2,1807.8,5.53158004]
[1745663514912,0.775,1808.2,1807.9,5.53101848]
[1745663515212,0.775,1808.2,1808.0,5.53093813]
[1745663515411,0.775,1808.2,1808.0,5.53082314]
[1745663515634,0.775,1808.2,1808.0,5.53076241]
[1745663516147,4.839,1808.3,1808.1,5.53066518]
[1745663516471,4.839,1808.3,1808.0,5.53077957]
[1745663518533,4.839,1808.3,1808.1,5.5306672]
[1745663519040,4.839,1808.3,1808.0,5.53077957]
[1745663519244,4.839,1808.3,1807.9,5.5311128]
[1745663519768,4.839,1808.3,1808.0,5.53097334]
[1745663520248,4.839,1808.3,1808.1,5.53066698]
[1745663520452,3.775,1808.4,1808.1,5.53066698]
[1745663520453,0.775,1808.4,1808.1,5.5304891]
[1745663520748,4.839,1808.3,1808.1,5.5304665]
[1745663520950,4.839,1808.3,1808.2,6.88780833]
[1745663522346,4.839,1808.3,1808.1,5.53052639]
[1745663522927,4.839,1808.3,1808.1,5.53066755]
[1745663524853,4.839,1808.3,1808.2,5.53036168]
[1745663525463,8.53059869,1808.2,1807.6,5.82093921]
[1745663525615,5.67576593,1808.2,1807.6,0.8233]
[1745663525965,6.08106561,1808.0,1807.4,5.53256483]
[1745663526168,4.835,1807.9,1807.4,5.53256483]
[1745663526471,3.7858,1807.8,1807.3,6.35638525]
[1745663526666,3.7858,1807.8,1807.4,5.53277785]
[1745663527424,3.7858,1807.8,1807.5,5.53247276]
[1745663528584,3.0,1807.8,1807.5,11.06480078]
[1745663528783,3.0,1807.8,1807.6,5.53212428]
[1745663529080,3.0,1807.8,1807.5,5.53239537]
[1745663530285,3.0,1807.8,1807.5,5.53229325]
[1745663530488,3.0,1807.8,1807.5,5.53227562]
[1745663530851,3.0,1807.8,1807.5,11.06460622]
[1745663531189,3.0,1807.8,1807.5,5.53227562]
[1745663532884,3.0,1807.8,1807.6,5.53207677]
[1745663533453,3.0,1807.8,1807.5,5.5323547]
[1745663534385,3.0,1807.8,1807.4,11.06522013]
[1745663535004,3.0,1807.8,1807.4,6.77094283]
[1745663535198,3.0,1807.8,1807.4,1.23834095]
[1745663535499,0.7553,1807.7,1807.3,6.35617483]
[1745663535702,0.7553,1807.7,1807.3,11.88906027]
[1745663536001,0.7553,1807.7,1807.4,5.53275419]
[1745663536355,0.7553,1807.7,1807.5,5.53248151]
[1745663536555,3.0,1807.8,1807.5,5.53229995]
[1745663536800,3.0,1807.8,1807.5,11.06463156]
[1745663537005,3.0,1807.8,1807.6,5.53214738]
[1745663537173,3.0,1807.8,1807.6,6.30904738]
[1745663538556,3.0,1807.8,1807.5,7.91058724]
[1745663539802,3.0,1807.8,1807.5,1.88336316]
[1745663540006,3.0,1807.8,1807.5,0.7769]
[1745663540321,3.7553,1807.8,1807.5,0.7769]
[1745663540466,3.7553,1807.8,1807.4,5.53266942]
[1745663540908,3.7553,1807.8,1807.4,5.53258107]
[1745663543011,3.7553,1807.8,1807.3,6.80475581]
[1745663543012,3.7553,1807.8,1807.3,6.30989737]
[1745663543307,10.6990624,1807.8,1807.3,5.53299737]
[1745663543698,5.16747416,1807.8,1807.4,5.53280368]
[1745663544004,3.7553,1807.8,1807.5,5.53248385]
[1745663544383,3.0,1807.8,1807.6,5.5321584]
[1745663544767,3.0,1807.8,1807.5,5.53232734]
[1745663545011,3.0,1807.8,1807.4,6.32331593]
[1745663545195,3.0,1807.8,1807.5,5.53238567]
[1745663546310,0.8027,1807.7,1807.4,6.76774072]
[1745663546622,0.8027,1807.7,1807.3,5.53300814]
[1745663548019,0.8027,1807.7,1807.2,7.01776752]
[1745663548221,6.08278405,1807.5,1807.2,0.28891601]
[1745663548386,4.837,1807.4,1807.2,0.28891601]
[1745663548710,0.7742,1807.3,1807.2,0.28891601]
[1745663548869,4.837,1807.4,1807.2,5.82220041]
[1745663549073,4.837,1807.4,1807.3,0.58222004]
[1745663549296,4.837,1807.4,1807.3,6.11533573]
[1745663552320,0.7742,1807.7,1807.3,1.85730942]
[1745663552623,4.837,1807.6,1807.5,5.53234448]
[1745663556629,4.834,1807.8,1807.6,5.53216839]
[1745663557632,4.834,1807.8,1807.4,5.53280956]
[1745663557846,4.834,1807.9,1807.7,5.53174417]
[1745663558049,4.834,1807.9,1807.6,5.53201884]
[1745663558350,4.834,1807.9,1807.7,5.53187879]
[1745663559850,4.834,1807.9,1807.6,5.53201037]
[1745663560628,4.834,1807.9,1807.6,5.53200873]
[1745663562244,4.834,1807.9,1807.7,5.53185556]
[1745663564554,4.834,1807.9,1807.6,5.53203507]
[1745663565044,4.834,1807.9,1807.6,5.53198181]
[1745663565253,4.834,1807.9,1807.7,5.53169229]
[1745663565549,4.834,1807.9,1807.8,5.53158535]
[1745663566052,4.834,1807.9,1807.7,5.53171786]
[1745663566348,4.834,1807.9,1807.8,5.53158535]
[1745663566720,4.834,1807.9,1807.7,5.53168647]
[1745663567120,4.834,1807.9,1807.8,5.53158535]
[1745663568566,4.834,1807.9,1807.7,5.53170733]
[1745663568749,4.834,1807.9,1807.7,6.70146992]
[1745663569720,4.834,1807.9,1807.8,5.53158535]
[1745663570358,4.834,1807.9,1807.7,6.70146446]
[1745663570866,4.834,1807.9,1807.8,5.53158535]
[1745663572270,0.8257,1808.2,1807.9,5.53127938]
[1745663572455,4.833,1808.0,1807.9,5.53127938]
[1745663572626,4.833,1808.0,1807.9,6.63755455]
[1745663573778,0.8257,1808.2,1807.9,6.63755455]
[1745663573979,4.833,1808.2,1808.1,5.53047192]
[1745663574144,0.8257,1808.4,1808.2,5.53029803]
[1745663574346,16.603,1808.5,1808.2,5.53029803]
[1745663574347,4.833,1808.3,1808.2,5.53029803]
[1745663574683,21.436,1808.5,1808.4,5.52975005]
[1745663574977,5.6587,1808.8,1808.5,5.52944429]
[1745663575183,5.6587,1808.8,1808.6,5.52900772]
[1745663577973,4.833,1808.8,1808.6,5.52900772]
[1745663578272,4.833,1808.8,1808.7,5.52883286]
[1745663578469,4.833,1808.8,1808.6,5.52900629]
[1745663578631,4.833,1808.8,1808.6,6.63484034]
[1745663580778,4.833,1808.8,1808.7,5.52883286]
[1745663580939,0.96474902,1809.2,1808.7,0.7704]
[1745663580940,0.7693,1809.2,1808.7,0.7704]
[1745663581145,4.832,1809.3,1809.1,5.52758301]
[1745663581454,4.832,1809.3,1809.1,6.63313113]
[1745663582374,4.832,1809.3,1809.1,1.10554812]
[1745663582578,4.832,1809.3,1809.0,11.82597358]
[1745663582791,4.832,1809.3,1809.1,5.52756433]
[1745663583081,4.831,1809.4,1809.2,5.52712875]
[1745663584193,4.831,1809.4,1809.1,5.52742408]
[1745663585454,4.831,1809.4,1809.1,11.05486214]
[1745663585649,4.831,1809.4,1809.2,1.10548621]
[1745663585854,4.831,1809.4,1809.1,5.52742408]
[1745663586295,4.831,1809.4,1809.2,5.52729296]
[1745663586474,4.831,1809.4,1809.3,5.52699939]
[1745663586845,4.831,1809.4,1809.2,5.52714381]
[1745663587977,4.827,1809.6,1809.3,6.27786703]
[1745663588184,4.827,1809.8,1809.6,5.52608045]
[1745663588483,4.827,1809.8,1809.6,11.80305648]
[1745663588654,4.827,1809.8,1809.7,5.52577775]
[1745663588861,4.05271669,1810.1,1809.8,5.52545355]
[1745663589071,4.827,1810.0,1809.9,6.2760702]
[1745663589270,4.827,1810.0,1809.9,0.7511]
[1745663590167,5.5908,1810.0,1809.7,0.40480976]
[1745663590879,4.827,1810.0,1809.7,0.40480976]
[1745663591091,4.827,1810.0,1809.8,5.52541071]
[1745663591250,4.827,1810.0,1809.8,0.7511]
[1745663591450,4.827,1810.0,1809.9,5.52516713]
[1745663591781,4.827,1810.0,1809.7,0.40480976]
[1745663591949,4.827,1810.0,1809.7,5.93053709]
[1745663592278,4.827,1810.0,1809.8,0.59305371]
[1745663595368,4.827,1810.0,1809.7,0.40480976]
[1745663595552,4.827,1810.0,1809.7,5.93058036]
[1745663596899,4.827,1810.0,1809.7,0.40480976]
[1745663597552,6.31490155,1809.8,1809.3,0.7731]
[1745663597784,7.49891244,1809.8,1809.2,6.31374848]
[1745663598156,0.7936,1809.4,1809.0,1.19140976]
[1745663598787,0.7936,1809.4,1809.0,5.93271721]
[1745663600078,4.825,1809.5,1809.0,5.93271721]
[1745663600279,4.825,1809.5,1809.0,7.15745528]
[1745663601392,10.35141296,1809.5,1809.0,7.15745528]
[1745663601616,9.32046203,1809.4,1808.7,6.72000768]
[1745663601798,3.7936,1809.4,1808.8,5.52837098]
[1745663601958,0.7936,1809.4,1809.0,6.31436316]
[1745663602161,4.825,1809.5,1809.0,6.31436316]
[1745663602494,4.825,1809.5,1809.1,5.52759839]
[1745663602699,4.825,1809.5,1809.0,7.49857611]
[1745663602907,4.825,1809.5,1809.1,5.52746699]
[1745663604017,10.35142107,1809.5,1809.0,7.49859709]
[1745663604314,9.35134629,1809.4,1808.9,6.2980307]
[1745663604516,14.87830821,1809.4,1808.9,0.77]
[1745663604678,5.52712889,1809.3,1808.7,5.93338645]
[1745663604884,5.52712889,1809.3,1808.7,12.23199709]
[1745663605095,5.52712889,1809.3,1808.8,5.52852457]
[1745663605295,5.52712889,1809.3,1808.8,6.75171567]
[1745663605713,5.52712889,1809.3,1808.8,1.2231911]
[1745663605714,0.55,1809.3,1808.8,1.2231911]
[1745663606019,0.55,1809.3,1808.8,6.75160495]
[1745663606814,3.8246,1809.4,1808.9,5.52814476]
[1745663607183,9.3512975,1809.4,1808.9,5.52814476]
[1745663608919,3.8246,1809.4,1808.9,5.52822157]
[1745663609083,3.8246,1809.4,1808.9,6.7562032]
[1745663609284,3.8246,1809.4,1808.9,12.28421736]
[1745663609583,3.8246,1809.4,1809.0,5.52788201]
[1745663609783,3.8246,1809.4,1809.0,0.77]
[1745663609984,3.8246,1809.4,1809.0,6.29768948]
[1745663610216,3.8246,1809.4,1809.0,7.6030638]
[1745663611227,3.8246,1809.4,1809.0,1.30537432]
[1745663611524,9.35145865,1809.4,1808.8,5.93318206]
[1745663612206,8.52685865,1809.4,1808.8,5.93318206]
[1745663612407,0.8246,1809.3,1808.8,5.93322797]
[1745663612613,3.0,1809.4,1809.0,0.77]
[1745663612812,4.4168626,1809.4,1809.0,0.77]
[1745663612993,3.0,1809.4,1809.0,6.29779838]
[1745663613321,3.0,1809.4,1809.0,6.29775878]
[1745663614404,3.0,1809.4,1809.0,0.77]
[1745663614741,0.8171,1809.3,1808.8,6.73862368]
[1745663614888,5.52775188,1809.1,1808.8,0.40480976]
[1745663615092,14.17128223,1809.0,1808.8,0.40480976]
[1745663615323,14.17128223,1809.0,1808.1,0.70369861]
[1745663615324,0.8171,1808.7,1808.2,6.74048462]
[1745663615693,4.826,1808.6,1808.2,6.74048462]
[1745663616336,4.826,1808.6,1808.2,0.8054]
[1745663616640,4.826,1808.6,1808.1,5.81935242]
[1745663616792,4.826,1808.6,1808.1,7.08439879]
[1745663617224,3.0,1808.5,1808.1,1.55380178]
[1745663617411,3.0,1808.5,1808.0,6.33619816]
[1745663618530,0.8015,1808.4,1807.8,0.6936778]
[1745663618733,1.3515,1808.4,1807.9,5.53113416]
[1745663618947,0.8015,1808.4,1808.0,5.53075034]
[1745663621424,6.33126916,1808.4,1807.9,6.66632378]
[1745663621625,0.8015,1808.4,1807.9,6.66632378]
[1745663624547,0.8015,1808.4,1808.1,5.53059905]
[1745663624742,0.8015,1808.4,1808.1,5.5304541]
[1745663625049,0.8015,1808.4,1808.1,6.08349951]
[1745663625685,6.1968,1808.6,1808.2,5.53035551]
[1745663626912,5.6468,1808.6,1808.2,5.53035551]
[1745663628411,5.6468,1808.6,1808.2,6.34704409]
[1745663629571,5.6468,1808.6,1808.2,6.9817485]
[1745663630074,5.6468,1808.6,1808.3,5.53000903]
[1745663631295,5.6468,1808.6,1808.4,5.52972561]